[Event "44th Chess Olympiad Women 2022"]
[Site "Chennai"]
[Date "2022.08.09"]
[Round "11.12"]
[White "Miranda Llanes, Yerisbel"]
[Black "Fronda, Jan Jodilyn"]
[Result "1-0"]
[ECO "D31"]
[WhiteElo "2347"]
[BlackElo "2181"]
[Annotator "RC"]
[PlyCount "53"]
[EventDate "2022.07.29"]
[EventType "team-tourn"]
[EventCountry "IND"]
[SourceTitle "playchess.com"]
[Source "ChessBase"]
[SourceQuality "1"]
[WhiteTeam "Cuba"]
[BlackTeam "Philippines"]
[WhiteTeamCountry "CUB"]
[BlackTeamCountry "PHI"]
[TimeControl "40/5400+30:1800+30"]

1. d4 {[%emt 0:00:12]} d5 {[%emt 0:00:30]} 2. c4 {[%emt 0:00:10]} e6 {[%emt 0:00:22]} 3. Nc3 {[%emt 0:00:06]} c6 {[%emt 0:00:05]} 4. e4 {[%emt 0:01:53]} dxe4 {[%emt 0:03:01]} 5. Nxe4 {[%emt 0:00:06]} Bb4+ {[%emt 0:02:06]} 6. Bd2 {[%emt 0:00:09]} Qxd4 {[%emt 0:02:08]} 7. Bxb4 {[%emt 0:00:06]} Qxe4+ {[%emt 0:00:06]} 8. Be2 {[%emt 0:00:03]} Nd7 {[%emt 0:03:08]} 9. Nf3 {[%emt 0:02:21]} c5 {[%emt 0:06:00]} 10. Bc3 {[%emt 0:00:53]} Ne7 {[%emt 0:01:53]} 11. O-O {[%emt 0:03:08]} O-O {[%emt 0:10:08]} 12. Re1 {[%emt 0:05:33]} Qf4 {[%emt 0:06:35]} 13. Bd3 {[%emt 0:08:51]} Ng6 {[%emt 0:03:18]} 14. g3 {[%emt 0:07:24]} Qc7 {[%emt 0:00:41]} 15. Ng5 {[%emt 0:01:13]} Rd8 {[%emt 0:04:26]} 16. h4 {[%emt 0:09:43]} e5 {[%emt 0:07:59]} 17. h5 {[%emt 0:07:17]} Ngf8 {[%emt 0:00:27]} 18. Qf3 {[%emt 0:00:47]} Nf6 {[%emt 0:04:21]} 19. Bxe5 {[%emt 0:00:22]} Qc6 {[%emt 0:01:49]} 20. Be4 {[%emt 0:01:25]} Qb6 {[%emt 0:02:13]} 21. h6 {[%emt 0:07:02]} Bg4 {[%emt 0:06:37]} 22. Qf4 {[%emt 0:03:29]} Bh5 {[%emt 0:05:58]} 23. hxg7 {[%emt 0:03:14]} N8d7 {[%emt 0:00:10]} 24. Bc3 {[%emt 0:06:14]} h6 {[%emt 0:08:41]} 25. Nxf7 {[%emt 0:02:44]} Bxf7 {[%emt 0:04:16]} 26. Qxh6 {[%emt 0:00:12]} Bxc4 {[%emt 0:00:10]} 27. Bg6 {[%emt 0:00:21]} 1-0

[Event "44th Chess Olympiad Women 2022"]
[Site "Chennai"]
[Date "2022.08.09"]
[Round "11.12"]
[White "Forgas Moreno, Yaniela"]
[Black "Mordido, Kylen Joy"]
[Result "1/2-1/2"]
[ECO "B26"]
[WhiteElo "2343"]
[BlackElo "2023"]
[Annotator "RC"]
[PlyCount "83"]
[EventDate "2022.07.29"]
[EventType "team-tourn"]
[EventCountry "IND"]
[SourceTitle "playchess.com"]
[Source "ChessBase"]
[SourceQuality "1"]
[WhiteTeam "Cuba"]
[BlackTeam "Philippines"]
[WhiteTeamCountry "CUB"]
[BlackTeamCountry "PHI"]
[TimeControl "40/5400+30:1800+30"]

1. e4 {[%emt 0:01:04]} c5 {[%emt 0:00:50]} 2. Nc3 {[%emt 0:00:13]} Nc6 {[%emt 0:01:12]} 3. g3 {[%emt 0:00:34]} g6 {[%emt 0:00:58]} 4. Bg2 {[%emt 0:00:13]} Bg7 {[%emt 0:01:16]} 5. d3 {[%emt 0:00:15]} d6 {[%emt 0:01:58]} 6. Be3 {[%emt 0:00:25]} Nf6 {[%emt 0:00:49]} 7. h3 {[%emt 0:01:08]} Rb8 {[%emt 0:02:59]} 8. Qd2 {[%emt 0:01:16]} Nd4 {[%emt 0:04:55]} 9. Nd1 {[%emt 0:03:21]} e5 {[%emt 0:02:56]} 10. c3 {[%emt 0:10:36]} Ne6 {[%emt 0:01:00]} 11. Ne2 {[%emt 0:01:40]} d5 {[%emt 0:02:54]} 12. Qc2 {[%emt 0:10:12]} O-O {[%emt 0:02:30]} 13. O-O {[%emt 0:02:07]} b6 {[%emt 0:04:10]} 14. f4 {[%emt 0:11:32]} dxe4 {[%emt 0:02:26]} 15. dxe4 {[%emt 0:01:03]} exf4 {[%emt 0:05:14]} 16. gxf4 {[%emt 0:07:30]} Ba6 {[%emt 0:03:12]} 17. f5 {[%emt 0:06:24]} Nc7 {[%emt 0:23:01]} 18. c4 {[%emt 0:02:54]} Nh5 {[%emt 0:02:51]} 19. Nf2 {[%emt 0:03:37]} Qe7 {[%emt 0:08:20]} 20. Ng4 {[%emt 0:01:12]} Ne8 {[%emt 0:07:55]} 21. Nf4 {[%emt 0:09:09]} Nxf4 {[%emt 0:03:18]} 22. Bxf4 {[%emt 0:00:09]} Bd4+ {[%emt 0:01:20]} 23. Kh1 {[%emt 0:01:08]} Nd6 {[%emt 0:05:06]} 24. f6 {[%emt 0:11:12]} Qe6 {[%emt 0:00:23]} 25. Bxd6 {[%emt 0:01:53]} Qxd6 {[%emt 0:00:03]} 26. e5 {[%emt 0:01:44]} Bxe5 {[%emt 0:01:23]} 27. Qc1 {[%emt 0:00:47]} Kh8 {[%emt 0:02:42]} 28. Qh6 {[%emt 0:01:16]} Rg8 {[%emt 0:00:28]} 29. Qg5 {[%emt 0:05:23]} Bd4 {[%emt 0:02:15]} 30. Bd5 {[%emt 0:01:24]} Bb7 {[%emt 0:01:19]} 31. Nh6 {[%emt 0:00:51]} Rgf8 {[%emt 0:01:18]} 32. Rae1 {[%emt 0:00:31]} Bxd5+ {[%emt 0:01:23]} 33. cxd5 {[%emt 0:00:20]} Rb7 {[%emt 0:00:56]} 34. b3 {[%emt 0:01:25]} Rd7 {[%emt 0:01:51]} 35. Re7 {[%emt 0:01:02]} Qxd5+ {[%emt 0:01:05]} 36. Qxd5 {[%emt 0:00:13]} Rxd5 {[%emt 0:00:01]} 37. Nxf7+ {[%emt 0:01:08]} Kg8 {[%emt 0:00:13]} 38. Nh6+ {[%emt 0:00:30]} Kh8 {[%emt 0:00:07]} 39. Nf7+ {[%emt 0:00:06]} Kg8 {[%emt 0:00:05]} 40. Nh6+ {[%emt 0:00:05]} Kh8 {[%emt 0:00:09]} 41. Nf7+ {[%emt 0:03:45]} Kg8 {[%emt 0:00:09]} 42. Nh6+ {[%emt 0:00:06]} 1/2-1/2

[Event "44th Chess Olympiad Women 2022"]
[Site "Chennai"]
[Date "2022.08.09"]
[Round "11.12"]
[White "Frayna, Janelle Mae"]
[Black "Ordaz Valdes, Lisandra Teresa"]
[Result "1/2-1/2"]
[ECO "C47"]
[WhiteElo "2224"]
[BlackElo "2367"]
[Annotator "RC"]
[PlyCount "70"]
[EventDate "2022.07.29"]
[EventType "team-tourn"]
[EventCountry "IND"]
[SourceTitle "playchess.com"]
[Source "ChessBase"]
[SourceQuality "1"]
[WhiteTeam "Philippines"]
[BlackTeam "Cuba"]
[WhiteTeamCountry "PHI"]
[BlackTeamCountry "CUB"]
[TimeControl "40/5400+30:1800+30"]

1. e4 {[%emt 0:00:23]} e5 {[%emt 0:00:06]} 2. Nf3 {[%emt 0:00:04]} Nc6 {[%emt 0:00:05]} 3. Nc3 {[%emt 0:00:15]} Nf6 {[%emt 0:00:06]} 4. d4 {[%emt 0:00:52]} Bb4 {[%emt 0:00:07]} 5. Nxe5 {[%emt 0:00:11]} Qe7 {[%emt 0:00:06]} 6. Qd3 {[%emt 0:01:35]} Bxc3+ {[%emt 0:00:13]} 7. Qxc3 {[%emt 0:02:52]} Nxe4 {[%emt 0:00:07]} 8. Qe3 {[%emt 0:00:57]} Nd6 {[%emt 0:00:06]} 9. Nxc6 {[%emt 0:05:02]} dxc6 {[%emt 0:00:25]} 10. Qxe7+ {[%emt 0:13:23]} Kxe7 {[%emt 0:00:24]} 11. Bd3 {[%emt 0:00:25]} Bf5 {[%emt 0:04:40]} 12. Bxf5 {[%emt 0:00:43]} Nxf5 {[%emt 0:00:01]} 13. c3 {[%emt 0:00:04]} Rhe8 {[%emt 0:00:33]} 14. O-O {[%emt 0:02:03]} Kd7 {[%emt 0:03:13]} 15. Bd2 {[%emt 0:12:29]} Re2 {[%emt 0:02:25]} 16. Rad1 {[%emt 0:01:07]} Rae8 {[%emt 0:12:08]} 17. f3 {[%emt 0:00:59]} a5 {[%emt 0:00:55]} 18. Rf2 {[%emt 0:00:45]} R2e6 {[%emt 0:02:01]} 19. Rff1 {[%emt 0:07:34]} Ne3 {[%emt 0:06:58]} 20. Bxe3 {[%emt 0:00:57]} Rxe3 {[%emt 0:00:01]} 21. Rf2 {[%emt 0:05:51]} a4 {[%emt 0:00:45]} 22. Rc2 {[%emt 0:03:03]} Re2 {[%emt 0:09:03]} 23. Rdd2 {[%emt 0:01:43]} Rxd2 {[%emt 0:11:54]} 24. Rxd2 {[%emt 0:00:04]} Re1+ {[%emt 0:04:15]} 25. Kf2 {[%emt 0:01:06]} Rh1 {[%emt 0:00:18]} 26. h3 {[%emt 0:00:35]} Rc1 {[%emt 0:02:51]} 27. Ke3 {[%emt 0:02:36]} a3 {[%emt 0:03:18]} 28. Kd3 {[%emt 0:00:09]} axb2 {[%emt 0:01:59]} 29. Rxb2 {[%emt 0:00:04]} b5 {[%emt 0:01:46]} 30. Kd2 {[%emt 0:14:49]} Rg1 {[%emt 0:02:25]} 31. Kd3 {[%emt 0:02:14]} Rc1 {[%emt 0:10:41]} 32. Kd2 {[%emt 0:00:49]} Ra1 {[%emt 0:06:39]} 33. Kd3 {[%emt 0:04:22]} Rc1 {[%emt 0:09:25]} 34. Kd2 {[%emt 0:00:04]} Rg1 {[%emt 0:01:30]} 35. Kd3 {[%emt 0:00:01]} Rc1 {[%emt 0:04:36]} 1/2-1/2

[Event "44th Chess Olympiad Women 2022"]
[Site "Chennai"]
[Date "2022.08.09"]
[Round "11.12"]
[White "San Diego, Marie Antoinette"]
[Black "Arribas Robaina, Maritza"]
[Result "1/2-1/2"]
[ECO "D27"]
[WhiteElo "2101"]
[BlackElo "2239"]
[Annotator "RC"]
[PlyCount "91"]
[EventDate "2022.07.29"]
[EventType "team-tourn"]
[EventCountry "IND"]
[SourceTitle "playchess.com"]
[Source "ChessBase"]
[SourceQuality "1"]
[WhiteTeam "Philippines"]
[BlackTeam "Cuba"]
[WhiteTeamCountry "PHI"]
[BlackTeamCountry "CUB"]
[TimeControl "40/5400+30:1800+30"]

1. d4 {[%emt 0:00:03]} Nf6 {[%emt 0:00:04]} 2. Nf3 {[%emt 0:00:10]} e6 {[%emt 0:00:21]} 3. c4 {[%emt 0:00:09]} d5 {[%emt 0:00:09]} 4. Nc3 {[%emt 0:00:07]} Be7 {[%emt 0:00:17]} 5. Bg5 {[%emt 0:01:24]} h6 {[%emt 0:00:58]} 6. Bh4 {[%emt 0:00:37]} dxc4 {[%emt 0:01:51]} 7. e3 {[%emt 0:00:41]} a6 {[%emt 0:00:35]} 8. a4 {[%emt 0:02:39]} c5 {[%emt 0:01:49]} 9. Bxc4 {[%emt 0:02:21]} cxd4 {[%emt 0:03:15]} 10. exd4 {[%emt 0:00:27]} O-O {[%emt 0:01:50]} 11. O-O {[%emt 0:01:37]} Nc6 {[%emt 0:00:14]} 12. Re1 {[%emt 0:02:43]} b6 {[%emt 0:05:19]} 13. Bxf6 {[%emt 0:15:36]} Bxf6 {[%emt 0:00:32]} 14. d5 {[%emt 0:00:07]} Bxc3 {[%emt 0:04:41]} 15. bxc3 {[%emt 0:00:19]} exd5 {[%emt 0:01:32]} 16. Bxd5 {[%emt 0:02:43]} Bb7 {[%emt 0:04:56]} 17. Rb1 {[%emt 0:06:24]} Rb8 {[%emt 0:00:52]} 18. c4 {[%emt 0:01:51]} a5 {[%emt 0:04:55]} 19. c5 {[%emt 0:19:19]} Nb4 {[%emt 0:05:32]} 20. Bxb7 {[%emt 0:00:14]} Rxb7 {[%emt 0:01:23]} 21. Qxd8 {[%emt 0:02:25]} Rxd8 {[%emt 0:00:17]} 22. cxb6 {[%emt 0:00:11]} Rxb6 {[%emt 0:00:48]} 23. h3 {[%emt 0:02:40]} Rbd6 {[%emt 0:03:48]} 24. Re5 {[%emt 0:06:05]} Rd5 {[%emt 0:02:11]} 25. Rc1 {[%emt 0:08:56]} Nd3 {[%emt 0:11:22]} 26. Rxd5 {[%emt 0:02:17]} Rxd5 {[%emt 0:00:10]} 27. Rc8+ {[%emt 0:01:03]} Kh7 {[%emt 0:00:08]} 28. Rc4 {[%emt 0:02:24]} Nb2 {[%emt 0:09:09]} 29. Rd4 {[%emt 0:00:57]} Rxd4 {[%emt 0:03:45]} 30. Nxd4 {[%emt 0:00:08]} Kg6 {[%emt 0:00:17]} 31. f4 {[%emt 0:02:58]} Nxa4 {[%emt 0:01:03]} 32. Nb3 {[%emt 0:02:07]} Kf5 {[%emt 0:00:07]} 33. g3 {[%emt 0:00:45]} Ke4 {[%emt 0:00:39]} 34. Kf2 {[%emt 0:03:47]} Nb2 {[%emt 0:04:05]} 35. Nxa5 {[%emt 0:00:10]} h5 {[%emt 0:02:30]} 36. Nb7 {[%emt 0:01:43]} Nc4 {[%emt 0:00:55]} 37. h4 {[%emt 0:03:58]} g6 {[%emt 0:05:34]} 38. Nc5+ {[%emt 0:02:12]} Kd5 {[%emt 0:00:30]} 39. Nb3 {[%emt 0:00:39]} Nd6 {[%emt 0:01:30]} 40. Kf3 {[%emt 0:01:40]} Nf5 {[%emt 0:01:09]} 41. Nd2 {[%emt 0:32:06]} Nd4+ {[%emt 0:36:15]} 42. Ke3 {[%emt 0:00:53]} Nc2+ {[%emt 0:00:53]} 43. Kd3 {[%emt 0:00:29]} Nb4+ {[%emt 0:00:38]} 44. Ke3 {[%emt 0:00:23]} Nc2+ {[%emt 0:01:07]} 45. Kd3 {[%emt 0:00:06]} Nd4 {[%emt 0:00:45]} 46. Ke3 {[%emt 0:00:58]} 1/2-1/2

[Event "44th Chess Olympiad Women 2022"]
[Site "Chennai"]
[Date "2022.08.09"]
[Round "11.13"]
[White "Peng, Zhaoqin"]
[Black "Zhang, Jilin"]
[Result "1/2-1/2"]
[ECO "A16"]
[WhiteElo "2349"]
[BlackElo "2212"]
[Annotator "RC"]
[PlyCount "84"]
[EventDate "2022.07.29"]
[EventType "team-tourn"]
[EventCountry "IND"]
[SourceTitle "playchess.com"]
[Source "ChessBase"]
[SourceQuality "1"]
[WhiteTeam "Netherlands"]
[BlackTeam "Australia"]
[WhiteTeamCountry "NED"]
[BlackTeamCountry "AUS"]
[TimeControl "40/5400+30:1800+30"]

1. c4 {[%emt 0:00:04]} Nf6 {[%emt 0:00:23]} 2. Nc3 {[%emt 0:00:04]} d5 {[%emt 0:01:25]} 3. cxd5 {[%emt 0:00:15]} Nxd5 {[%emt 0:00:06]} 4. Nf3 {[%emt 0:00:20]} Nxc3 {[%emt 0:03:26]} 5. bxc3 {[%emt 0:02:23]} g6 {[%emt 0:00:34]} 6. g3 {[%emt 0:01:46]} Bg7 {[%emt 0:03:34]} 7. Bg2 {[%emt 0:00:07]} O-O {[%emt 0:00:30]} 8. O-O {[%emt 0:02:20]} e5 {[%emt 0:05:00]} 9. Rb1 {[%emt 0:01:33]} c6 {[%emt 0:03:00]} 10. d4 {[%emt 0:03:14]} Nd7 {[%emt 0:00:46]} 11. a4 {[%emt 0:07:36]} Re8 {[%emt 0:05:27]} 12. Qc2 {[%emt 0:17:43]} exd4 {[%emt 0:11:35]} 13. Nxd4 {[%emt 0:12:46]} Ne5 {[%emt 0:08:47]} 14. h3 {[%emt 0:10:53]} Qc7 {[%emt 0:14:51]} 15. f4 {[%emt 0:06:02]} Nc4 {[%emt 0:06:17]} 16. e4 {[%emt 0:05:39]} Bd7 {[%emt 0:02:11]} 17. Qa2 {[%emt 0:03:56]} b5 {[%emt 0:03:49]} 18. axb5 {[%emt 0:03:24]} cxb5 {[%emt 0:00:04]} 19. Nxb5 {[%emt 0:00:25]} Bxb5 {[%emt 0:01:58]} 20. Rxb5 {[%emt 0:00:02]} Bxc3 {[%emt 0:01:10]} 21. e5 {[%emt 0:06:02]} Rab8 {[%emt 0:00:17]} 22. Rxb8 {[%emt 0:00:05]} Rxb8 {[%emt 0:00:04]} 23. Kh2 {[%emt 0:00:05]} Rd8 {[%emt 0:04:54]} 24. h4 {[%emt 0:02:18]} Kg7 {[%emt 0:07:30]} 25. Qa6 {[%emt 0:02:49]} Nb6 {[%emt 0:01:11]} 26. Be3 {[%emt 0:03:45]} Bd4 {[%emt 0:04:04]} 27. Rc1 {[%emt 0:00:58]} Qe7 {[%emt 0:00:27]} 28. Bxd4 {[%emt 0:01:58]} Rxd4 {[%emt 0:00:05]} 29. Rc2 {[%emt 0:00:23]} Nd5 {[%emt 0:06:40]} 30. Qa1 {[%emt 0:00:28]} Ne3 {[%emt 0:00:50]} 31. Qxd4 {[%emt 0:01:20]} Nxc2 {[%emt 0:00:03]} 32. Qc3 {[%emt 0:00:27]} Nb4 {[%emt 0:00:38]} 33. h5 {[%emt 0:02:58]} Na6 {[%emt 0:02:10]} 34. Qc6 {[%emt 0:01:00]} Nb4 {[%emt 0:01:09]} 35. Qc4 {[%emt 0:01:07]} a5 {[%emt 0:00:59]} 36. Qb5 {[%emt 0:00:30]} Qa7 {[%emt 0:00:32]} 37. hxg6 {[%emt 0:00:43]} hxg6 {[%emt 0:00:09]} 38. Kh3 {[%emt 0:01:03]} Qc7 {[%emt 0:00:43]} 39. Kh2 {[%emt 0:00:43]} Qe7 {[%emt 0:01:59]} 40. Qb6 {[%emt 0:00:40]} g5 {[%emt 0:00:29]} 41. Qxa5 {[%emt 0:14:19]} gxf4 {[%emt 0:00:17]} 42. Qa3 {[%emt 0:02:06]} fxg3+ {[%emt 0:07:57]} 1/2-1/2

[Event "44th Chess Olympiad Women 2022"]
[Site "Chennai"]
[Date "2022.08.09"]
[Round "11.13"]
[White "Ryjanova, Julia"]
[Black "Roebers, Eline"]
[Result "0-1"]
[ECO "E63"]
[WhiteElo "2284"]
[BlackElo "2344"]
[Annotator "RC"]
[PlyCount "106"]
[EventDate "2022.07.29"]
[EventType "team-tourn"]
[EventCountry "IND"]
[SourceTitle "playchess.com"]
[Source "ChessBase"]
[SourceQuality "1"]
[WhiteTeam "Australia"]
[BlackTeam "Netherlands"]
[WhiteTeamCountry "AUS"]
[BlackTeamCountry "NED"]
[TimeControl "40/5400+30:1800+30"]

1. d4 {[%emt 0:00:03]} Nf6 {[%emt 0:00:11]} 2. c4 {[%emt 0:00:34]} g6 {[%emt 0:00:05]} 3. Nf3 {[%emt 0:01:08]} Bg7 {[%emt 0:00:06]} 4. g3 {[%emt 0:00:17]} O-O {[%emt 0:00:10]} 5. Bg2 {[%emt 0:00:06]} d6 {[%emt 0:00:20]} 6. O-O {[%emt 0:00:13]} Nc6 {[%emt 0:00:20]} 7. Nc3 {[%emt 0:00:11]} a6 {[%emt 0:00:07]} 8. b3 {[%emt 0:01:55]} Rb8 {[%emt 0:00:19]} 9. d5 {[%emt 0:00:50]} Na5 {[%emt 0:00:05]} 10. Bd2 {[%emt 0:02:19]} c5 {[%emt 0:04:29]} 11. dxc6 {[%emt 0:00:15]} Nxc6 {[%emt 0:00:10]} 12. Rc1 {[%emt 0:00:27]} Be6 {[%emt 0:08:52]} 13. Ng5 {[%emt 0:10:08]} Bd7 {[%emt 0:04:48]} 14. Nge4 {[%emt 0:11:20]} Ne8 {[%emt 0:15:02]} 15. Nd5 {[%emt 0:07:41]} f5 {[%emt 0:06:25]} 16. Ng5 {[%emt 0:07:11]} e6 {[%emt 0:04:24]} 17. Nc3 {[%emt 0:02:54]} h6 {[%emt 0:02:00]} 18. Nh3 {[%emt 0:07:25]} Ne5 {[%emt 0:04:06]} 19. e4 {[%emt 0:06:48]} b5 {[%emt 0:05:03]} 20. cxb5 {[%emt 0:05:37]} axb5 {[%emt 0:00:05]} 21. exf5 {[%emt 0:00:53]} gxf5 {[%emt 0:01:34]} 22. Nf4 {[%emt 0:00:30]} Nf6 {[%emt 0:03:34]} 23. Nce2 {[%emt 0:03:10]} b4 {[%emt 0:01:33]} 24. Nd4 {[%emt 0:01:50]} Re8 {[%emt 0:03:43]} 25. Nc2 {[%emt 0:04:04]} Ne4 {[%emt 0:09:50]} 26. Bxb4 {[%emt 0:01:46]} Bb5 {[%emt 0:06:13]} 27. Re1 {[%emt 0:02:21]} Qb6 {[%emt 0:05:42]} 28. Bxe4 {[%emt 0:12:34]} fxe4 {[%emt 0:00:12]} 29. Rxe4 {[%emt 0:00:59]} Bc6 {[%emt 0:03:29]} 30. Re3 {[%emt 0:00:28]} Ba8 {[%emt 0:01:04]} 31. Nh5 {[%emt 0:06:50]} Bh8 {[%emt 0:03:43]} 32. Ba3 {[%emt 0:02:18]} Qb7 {[%emt 0:01:29]} 33. Kf1 {[%emt 0:00:53]} Qh1+ {[%emt 0:02:49]} 34. Ke2 {[%emt 0:00:04]} Bf3+ {[%emt 0:00:09]} 35. Rxf3 {[%emt 0:00:08]} Qxf3+ {[%emt 0:00:08]} 36. Kf1 {[%emt 0:00:18]} Qh1+ {[%emt 0:02:24]} 37. Ke2 {[%emt 0:00:03]} Qe4+ {[%emt 0:00:04]} 38. Ne3 {[%emt 0:01:25]} Ra8 {[%emt 0:00:38]} 39. Bxd6 {[%emt 0:01:19]} Rxa2+ {[%emt 0:00:47]} 40. Rc2 {[%emt 0:00:19]} Rxc2+ {[%emt 0:00:32]} 41. Qxc2 {[%emt 0:30:09]} Qf3+ {[%emt 0:30:15]} 42. Kf1 {[%emt 0:00:00]} Qxh5 {[%emt 0:00:00]} 43. Qc7 {[%emt 0:00:00]} Qxh2 {[%emt 0:00:00]} 44. Qb7 {[%emt 0:00:00]} Qh3+ {[%emt 0:00:00]} 45. Ke1 {[%emt 0:00:00]} Qh5 {[%emt 0:00:00]} 46. Kf1 {[%emt 0:00:00]} Qf3 {[%emt 0:00:00]} 47. Qb5 {[%emt 0:01:24]} Rc8 {[%emt 0:00:00]} 48. Ke1 {[%emt 0:01:13]} Rc1+ {[%emt 0:00:00]} 49. Kd2 {[%emt 0:00:12]} Qxf2+ {[%emt 0:00:00]} 50. Kxc1 {[%emt 0:00:21]} Qxe3+ {[%emt 0:00:00]} 51. Kc2 {[%emt 0:01:04]} Qe4+ {[%emt 0:00:00]} 52. Kc1 {[%emt 0:00:56]} Nd3+ {[%emt 0:00:00]} 53. Kd2 {[%emt 0:01:10]} Qe1+ {[%emt 0:00:00]} 0-1

[Event "44th Chess Olympiad Women 2022"]
[Site "Chennai"]
[Date "2022.08.09"]
[Round "11.13"]
[White "Lanchava, Tea"]
[Black "Nguyen, Thu Giang"]
[Result "1/2-1/2"]
[ECO "D32"]
[WhiteElo "2257"]
[BlackElo "2119"]
[Annotator "RC"]
[PlyCount "72"]
[EventDate "2022.07.29"]
[EventType "team-tourn"]
[EventCountry "IND"]
[SourceTitle "playchess.com"]
[Source "ChessBase"]
[SourceQuality "1"]
[WhiteTeam "Netherlands"]
[BlackTeam "Australia"]
[WhiteTeamCountry "NED"]
[BlackTeamCountry "AUS"]
[TimeControl "40/5400+30:1800+30"]

1. c4 {[%emt 0:00:09]} e6 {[%emt 0:01:09]} 2. Nf3 {[%emt 0:00:29]} Nf6 {[%emt 0:00:37]} 3. e3 {[%emt 0:01:43]} d5 {[%emt 0:01:46]} 4. b3 {[%emt 0:00:34]} Be7 {[%emt 0:01:14]} 5. Bb2 {[%emt 0:03:36]} O-O {[%emt 0:02:02]} 6. Nc3 {[%emt 0:01:36]} c5 {[%emt 0:02:18]} 7. cxd5 {[%emt 0:04:33]} exd5 {[%emt 0:02:31]} 8. d4 {[%emt 0:00:23]} Nc6 {[%emt 0:01:52]} 9. Be2 {[%emt 0:01:07]} Ne4 {[%emt 0:04:06]} 10. O-O {[%emt 0:04:15]} Bf6 {[%emt 0:01:47]} 11. Na4 {[%emt 0:06:25]} Bg4 {[%emt 0:05:35]} 12. Ne5 {[%emt 0:07:55]} Bxe2 {[%emt 0:14:35]} 13. Qxe2 {[%emt 0:00:09]} cxd4 {[%emt 0:02:41]} 14. Nxc6 {[%emt 0:05:53]} bxc6 {[%emt 0:01:02]} 15. exd4 {[%emt 0:09:10]} Re8 {[%emt 0:03:29]} 16. Qd3 {[%emt 0:00:38]} Qd6 {[%emt 0:06:43]} 17. Rac1 {[%emt 0:02:04]} Bg5 {[%emt 0:02:25]} 18. Rc2 {[%emt 0:00:52]} Re6 {[%emt 0:04:27]} 19. g3 {[%emt 0:02:10]} Rae8 {[%emt 0:02:14]} 20. Kg2 {[%emt 0:06:52]} Rh6 {[%emt 0:05:49]} 21. f4 {[%emt 0:11:23]} Bd8 {[%emt 0:03:54]} 22. Bc1 {[%emt 0:11:22]} f5 {[%emt 0:01:08]} 23. Qf3 {[%emt 0:03:38]} Rg6 {[%emt 0:05:19]} 24. Nb2 {[%emt 0:00:27]} Bh4 {[%emt 0:03:51]} 25. Nd3 {[%emt 0:02:28]} Nxg3 {[%emt 0:05:49]} 26. hxg3 {[%emt 0:01:36]} Rxg3+ {[%emt 0:00:31]} 27. Qxg3 {[%emt 0:00:06]} Bxg3 {[%emt 0:00:27]} 28. Kxg3 {[%emt 0:00:04]} Qg6+ {[%emt 0:02:37]} 29. Kf2 {[%emt 0:00:17]} Qh5 {[%emt 0:00:59]} 30. Rg1 {[%emt 0:00:20]} Qh2+ {[%emt 0:03:03]} 31. Rg2 {[%emt 0:00:07]} Qh4+ {[%emt 0:00:15]} 32. Rg3 {[%emt 0:04:04]} Qh2+ {[%emt 0:00:34]} 33. Rg2 {[%emt 0:00:10]} Qh4+ {[%emt 0:00:10]} 34. Kg1 {[%emt 0:00:33]} Re1+ {[%emt 0:00:13]} 35. Nxe1 {[%emt 0:00:04]} Qxe1+ {[%emt 0:00:04]} 36. Kh2 {[%emt 0:00:05]} Qh4+ {[%emt 0:00:02]} 1/2-1/2

[Event "44th Chess Olympiad Women 2022"]
[Site "Chennai"]
[Date "2022.08.09"]
[Round "11.13"]
[White "Richards, Heather S"]
[Black "Ratsma, Rosa"]
[Result "0-1"]
[ECO "D00"]
[WhiteElo "2146"]
[BlackElo "2226"]
[Annotator "RC"]
[PlyCount "100"]
[EventDate "2022.07.29"]
[EventType "team-tourn"]
[EventCountry "IND"]
[SourceTitle "playchess.com"]
[Source "ChessBase"]
[SourceQuality "1"]
[WhiteTeam "Australia"]
[BlackTeam "Netherlands"]
[WhiteTeamCountry "AUS"]
[BlackTeamCountry "NED"]
[TimeControl "40/5400+30:1800+30"]

1. d4 {[%emt 0:00:04]} Nf6 {[%emt 0:00:19]} 2. Nc3 {[%emt 0:00:33]} d5 {[%emt 0:00:18]} 3. Bf4 {[%emt 0:00:05]} c5 {[%emt 0:00:20]} 4. e4 {[%emt 0:00:33]} Nxe4 {[%emt 0:01:02]} 5. Nxe4 {[%emt 0:00:12]} dxe4 {[%emt 0:00:08]} 6. dxc5 {[%emt 0:00:23]} Qxd1+ {[%emt 0:01:12]} 7. Rxd1 {[%emt 0:00:07]} Bd7 {[%emt 0:00:43]} 8. Bc4 {[%emt 0:04:01]} e6 {[%emt 0:03:22]} 9. Be3 {[%emt 0:01:04]} Nc6 {[%emt 0:02:16]} 10. a3 {[%emt 0:00:13]} Be7 {[%emt 0:10:55]} 11. b4 {[%emt 0:30:46]} a5 {[%emt 0:11:08]} 12. Bb5 {[%emt 0:02:39]} Bf6 {[%emt 0:06:17]} 13. Ne2 {[%emt 0:00:34]} axb4 {[%emt 0:14:40]} 14. axb4 {[%emt 0:02:02]} Ke7 {[%emt 0:05:29]} 15. O-O {[%emt 0:01:30]} Rhd8 {[%emt 0:00:45]} 16. Bxc6 {[%emt 0:01:24]} Bxc6 {[%emt 0:01:32]} 17. c4 {[%emt 0:04:39]} Ba4 {[%emt 0:03:05]} 18. Rc1 {[%emt 0:03:19]} Bb2 {[%emt 0:01:11]} 19. Rb1 {[%emt 0:00:09]} Be5 {[%emt 0:00:24]} 20. Rfc1 {[%emt 0:02:55]} Be8 {[%emt 0:02:49]} 21. b5 {[%emt 0:00:20]} h6 {[%emt 0:01:35]} 22. g4 {[%emt 0:02:18]} f5 {[%emt 0:02:08]} 23. c6 {[%emt 0:12:16]} bxc6 {[%emt 0:01:51]} 24. b6 {[%emt 0:00:05]} g5 {[%emt 0:11:47]} 25. gxf5 {[%emt 0:02:11]} exf5 {[%emt 0:00:19]} 26. b7 {[%emt 0:00:12]} Ra6 {[%emt 0:07:14]} 27. Bb6 {[%emt 0:06:45]} Rb8 {[%emt 0:00:19]} 28. Rd1 {[%emt 0:04:10]} Bh5 {[%emt 0:02:09]} 29. Bc5+ {[%emt 0:07:38]} Ke8 {[%emt 0:01:08]} 30. Rd2 {[%emt 0:00:41]} Bf3 {[%emt 0:02:02]} 31. Ng3 {[%emt 0:03:59]} f4 {[%emt 0:00:40]} 32. Nxe4 {[%emt 0:02:11]} Rxb7 {[%emt 0:02:52]} 33. Re1 {[%emt 0:00:09]} Kf7 {[%emt 0:00:43]} 34. Bd4 {[%emt 0:02:48]} Bxe4 {[%emt 0:02:36]} 35. Bxe5 {[%emt 0:01:21]} Bf3 {[%emt 0:00:35]} 36. Rd3 {[%emt 0:00:11]} Bg4 {[%emt 0:00:36]} 37. Rd6 {[%emt 0:01:19]} Re7 {[%emt 0:00:40]} 38. Rxh6 {[%emt 0:00:25]} Rxe5 {[%emt 0:00:36]} 39. Rb1 {[%emt 0:03:02]} Re7 {[%emt 0:00:52]} 40. Rh7+ {[%emt 0:00:24]} Kf6 {[%emt 0:00:20]} 41. Rh6+ {[%emt 0:00:54]} Kg7 {[%emt 0:02:28]} 42. Rd6 {[%emt 0:00:08]} Bf3 {[%emt 0:02:36]} 43. h4 {[%emt 0:07:23]} Rea7 {[%emt 0:01:46]} 44. Re1 {[%emt 0:01:34]} Ra1 {[%emt 0:00:56]} 45. Rde6 {[%emt 0:00:04]} Rxe1+ {[%emt 0:00:34]} 46. Rxe1 {[%emt 0:00:03]} Kg6 {[%emt 0:01:04]} 47. Kf1 {[%emt 0:03:21]} Rh7 {[%emt 0:01:18]} 48. Re8 {[%emt 0:00:51]} Rd7 {[%emt 0:01:57]} 49. Re1 {[%emt 0:00:20]} gxh4 {[%emt 0:00:44]} 50. Kg1 {[%emt 0:00:05]} Rd1 {[%emt 0:00:11]} 0-1